bitfinex/quotes_SOLUSD_20240726
["timestamp","ask_amount","ask_price","bid_price","bid_amount"]
[1721969141193,12.39,177.47,177.43,12.39]
[1721969141775,12.39,177.47,177.44,12.39]
[1721969143414,12.39,177.47,177.39,69.56]
[1721969143576,12.39,177.45,177.41,12.39]
[1721969144790,12.39,177.42,177.33,6.75017842]
[1721969144987,12.39,177.4,177.37,12.39]
[1721969145491,12.39,177.4,177.32,5.86166937]
[1721969145492,12.39,177.4,177.36,12.39]
[1721969147692,12.39,177.4,177.37,12.39]
[1721969148197,12.39,177.42,177.38,12.39]
[1721969148400,12.39,177.44,177.4,12.39]
[1721969148804,12.39,177.45,177.41,12.39]
[1721969149105,22.5985,177.46,177.42,12.39]
[1721969149106,34.9885,177.46,177.42,12.39]
[1721969149291,22.5985,177.46,177.43,12.39]
[1721969149691,16.3539,177.46,177.44,12.39]
[1721969150098,16.3539,177.46,177.43,12.39]
[1721969150302,28.7439,177.46,177.42,12.39]
[1721969150495,12.39,177.45,177.41,12.39]
[1721969150701,12.39,177.44,177.4,12.39]
[1721969150889,12.39,177.43,177.39,12.39]
[1721969151090,12.39,177.45,177.41,12.39]
[1721969151396,12.39,177.43,177.4,12.39]
[1721969152684,12.39,177.44,177.41,12.39]
[1721969153419,12.39,177.44,177.4,12.39]
[1721969153793,12.39,177.43,177.39,12.39]
[1721969154006,12.39,177.41,177.37,12.39]
[1721969154788,12.39,177.4,177.36,12.39]
[1721969155004,12.39,177.4,177.33,5.86505536]
[1721969155204,12.39,177.39,177.35,12.39]
[1721969155895,12.39,177.37,177.33,5.86505536]
[1721969156100,12.39,177.34,177.3,12.39]
[1721969156310,12.39,177.33,177.3,12.39]
[1721969156490,12.39,177.32,177.28,12.39]
[1721969156689,12.39,177.31,177.28,12.39]
[1721969157097,12.39,177.3,177.27,12.39]
[1721969158810,12.39,177.31,177.27,12.39]
[1721969159112,15.6528,177.32,177.29,12.39]
[1721969159904,15.6528,177.32,177.3,12.39]
[1721969160106,12.39,177.35,177.31,12.39]
[1721969160699,12.39,177.34,177.31,12.39]
[1721969161390,28.2009,177.36,177.32,12.39]
[1721969162488,12.39,177.35,177.31,12.39]
[1721969162793,12.39,177.32,177.28,12.39]
[1721969162987,12.39,177.32,177.26,1.00113068]
[1721969163205,12.39,177.33,177.29,12.39]
[1721969163494,15.8109,177.36,177.29,12.39]
[1721969163801,12.39,177.33,177.3,12.39]
[1721969163998,12.39,177.32,177.29,12.39]
[1721969164802,12.39,177.32,177.28,12.39]
[1721969165000,12.39,177.32,177.29,12.39]
[1721969165492,12.39,177.33,177.29,12.39]
[1721969165687,12.39,177.32,177.26,20.0]
[1721969165891,12.39,177.3,177.26,32.39]
[1721969167189,12.39,177.28,177.25,21.22639631]
[1721969167614,12.39,177.29,177.25,21.22639631]
[1721969167988,12.39,177.29,177.25,8.83639631]
[1721969168194,12.39,177.26,177.23,5.8727137]
[1721969168392,12.39,177.26,177.17,21.3194]
[1721969168393,12.39,177.24,177.17,21.3194]
[1721969168596,12.39,177.23,177.2,21.23156832]
[1721969168800,12.39,177.23,177.2,12.39]
[1721969169003,12.39,177.24,177.2,12.39]
[1721969170311,24.79,177.26,177.19,8.84259676]
[1721969170910,30.4316,177.26,177.19,8.84259676]
[1721969172209,5.6417,177.25,177.19,8.84259676]
[1721969172623,30.4314,177.26,177.19,8.84259676]
[1721969172922,5.6417,177.25,177.19,8.84259676]
[1721969173629,30.4322,177.24,177.19,8.84259676]
[1721969173808,24.79,177.24,177.19,8.84259676]
[1721969174918,30.4321,177.24,177.19,8.84259676]
[1721969175504,24.79,177.24,177.19,8.84259676]
[1721969176726,30.4321,177.24,177.19,8.84259676]
[1721969177116,24.79,177.24,177.19,8.84259676]
[1721969178525,24.79,177.26,177.19,8.84259676]
[1721969178737,24.79,177.24,177.19,8.84259676]
[1721969179042,5.6433,177.2,177.19,8.84259676]
[1721969179243,24.79,177.24,177.19,8.84259676]
[1721969179531,5.6424,177.23,177.19,8.84259676]
[1721969179732,30.4321,177.24,177.19,8.84259676]
[1721969181210,5.6424,177.23,177.14,24.79]
[1721969181409,5.6424,177.23,177.15,20.0]
[1721969181604,5.6424,177.23,177.17,8.84369621]
[1721969182010,24.79,177.22,177.17,8.84369621]
[1721969187213,30.4327,177.22,177.17,8.84369621]
[1721969188647,24.79,177.2,177.17,8.84369621]
[1721969189510,24.79,177.22,177.17,8.84369621]
[1721969190233,12.4,177.2,177.17,8.84369621]
[1721969190630,12.4,177.19,177.17,8.84369621]
[1721969191115,12.4,177.18,177.17,8.84369621]
[1721969191636,12.4,177.18,177.13,12.4]
[1721969191840,12.4,177.17,177.13,12.4]
[1721969192015,12.4,177.17,177.13,21.24550454]
[1721969192620,12.4,177.16,177.13,8.84550454]
[1721969194343,12.4,177.16,177.12,12.4]
[1721969194732,12.4,177.16,177.12,21.24659658]
[1721969195636,12.4,177.15,177.12,8.84659658]
[1721969195843,12.4,177.15,177.09,12.47077119]
[1721969195844,12.4,177.13,177.1,12.4]
[1721969196147,12.4,177.14,177.11,20.0]
[1721969198237,12.4,177.13,177.11,20.0]
[1721969198444,12.4,177.12,177.04,23.31059236]
[1721969198648,12.4,177.1,177.07,12.4]
[1721969198942,15.3335,177.16,177.09,12.4]
[1721969198943,12.4,177.13,177.09,12.4]
[1721969199451,12.4,177.11,177.08,12.4]
[1721969199833,12.4,177.11,177.07,12.4]
[1721969200148,12.4,177.12,177.08,12.4]
[1721969200646,12.4,177.12,177.09,12.4]
[1721969200976,12.4,177.12,177.08,12.4]
[1721969201337,20.9781,177.16,177.08,12.4]
[1721969201660,12.4,177.12,177.09,12.4]
[1721969202822,12.4,177.15,177.11,12.4]
[1721969203423,12.4,177.15,177.06,1.00457703]
[1721969203624,12.4,177.15,177.11,12.4]
[1721969204932,12.4,177.13,177.09,12.4]
[1721969205755,12.4,177.13,177.05,8.84860725]
[1721969205963,12.4,177.13,177.09,12.4]
[1721969207031,12.4,177.14,177.1,12.4]
[1721969207767,12.4,177.14,177.11,12.4]
[1721969209134,12.4,177.14,177.1,12.4]
[1721969209852,12.4,177.13,177.09,12.4]
[1721969211343,20.9781,177.16,177.09,12.4]
[1721969211549,12.4,177.14,177.1,12.4]
[1721969213645,12.4,177.15,177.11,12.4]
[1721969214740,12.4,177.14,177.1,12.4]
[1721969214962,12.4,177.13,177.1,12.4]
[1721969215468,12.4,177.14,177.1,12.4]
[1721969215842,16.1652,177.2,177.12,12.4]
[1721969216138,12.4,177.18,177.15,12.4]
[1721969216370,12.4,177.19,177.16,12.4]
[1721969217672,28.5652,177.2,177.16,12.4]
[1721969218649,12.4,177.25,177.19,12.4]
[1721969218854,12.4,177.25,177.22,12.4]
[1721969219039,15.7107,177.28,177.23,12.4]
[1721969219242,12.4,177.3,177.26,12.4]
[1721969219552,5.6395,177.32,177.24,1.0020852]
[1721969219553,12.4,177.31,177.28,12.4]
[1721969219752,12.4,177.32,177.28,12.4]
[1721969219949,12.4,177.31,177.28,12.4]
[1721969220150,12.4,177.31,177.27,12.4]
[1721969220345,12.4,177.29,177.19,6.4825]
[1721969220545,15.7107,177.33,177.23,12.4]
[1721969220546,12.4,177.27,177.23,12.4]
[1721969220759,12.4,177.26,177.23,12.4]
[1721969221861,12.4,177.28,177.24,12.4]
[1721969222081,12.4,177.29,177.26,12.4]
[1721969222563,12.4,177.28,177.24,12.4]
[1721969222876,5.6412,177.27,177.24,12.4]
[1721969223087,12.4,177.26,177.22,12.4]
[1721969223570,12.4,177.28,177.24,12.4]
[1721969224666,12.4,177.27,177.23,12.4]
[1721969226057,12.4,177.28,177.25,12.4]
[1721969226280,12.4,177.32,177.27,12.4]
[1721969226565,11.9251,177.36,177.3,12.4]
[1721969226867,12.4,177.33,177.3,12.4]
[1721969227067,12.4,177.32,177.28,12.4]
[1721969227373,12.4,177.31,177.27,12.4]
[1721969228752,5.6392,177.33,177.28,12.4]
[1721969228954,12.4,177.33,177.29,12.4]
[1721969229160,12.4,177.34,177.3,12.4]
[1721969229359,12.4,177.34,177.31,12.4]
[1721969229553,18.0389,177.34,177.25,15.2206]
[1721969229753,18.0389,177.34,177.3,12.4]
[1721969229954,12.4,177.33,177.3,12.4]
[1721969230764,18.0389,177.34,177.3,12.4]
[1721969233071,12.4,177.36,177.32,12.4]
[1721969233246,12.4,177.37,177.33,12.4]
[1721969233453,28.1702,177.41,177.36,12.4]
[1721969233774,12.4,177.37,177.34,12.4]
[1721969234466,12.4,177.37,177.33,12.4]
[1721969234775,12.4,177.37,177.26,6.5601]
[1721969234776,12.4,177.34,177.26,6.5601]
[1721969234964,12.4,177.34,177.3,12.4]
[1721969235663,12.4,177.39,177.26,6.5601]
[1721969235664,12.4,177.33,177.26,6.5601]
[1721969235983,12.4,177.33,177.29,12.4]
[1721969236166,6.6611,177.38,177.29,12.4]
[1721969236350,6.6611,177.38,177.26,7.56090663]
[1721969236549,12.4,177.36,177.32,12.4]
[1721969236776,12.4,177.37,177.33,12.4]
[1721969236957,12.4,177.37,177.26,6.5601]
[1721969236958,12.4,177.37,177.34,12.4]
[1721969237861,15.9506,177.41,177.36,12.4]
[1721969238174,28.3506,177.41,177.37,12.4]
[1721969238668,12.4,177.41,177.37,12.4]
[1721969239856,16.97961541,177.45,177.4,12.4]
[1721969240061,16.95,177.5,177.44,12.4]
[1721969240062,12.4,177.47,177.44,12.4]
[1721969240272,31.314,177.5,177.41,25.71904955]
[1721969240466,15.4794,177.51,177.34,26.557]
[1721969240467,15.4794,177.51,177.43,24.72]
[1721969240663,15.4794,177.51,177.44,0.99792104]
[1721969240971,22.52167555,177.51,177.4,15.3458]
[1721969241171,5.6343,177.49,177.41,44.72]
[1721969241366,24.72,177.48,177.41,20.0]
[1721969241565,24.72,177.46,177.39,24.72]
[1721969242978,30.3551,177.46,177.37,24.72]
[1721969243156,30.3551,177.46,177.38,20.0]
[1721969243961,24.72,177.44,177.37,24.72]
[1721969244284,1.40933614,177.43,177.35,40.0658]
[1721969244462,24.72,177.44,177.37,24.72]
[1721969244863,26.12925072,177.44,177.37,24.72]
[1721969245174,24.72,177.44,177.37,24.72]
[1721969245383,24.72,177.44,177.35,40.0658]
[1721969245678,24.72,177.44,177.36,20.0]
[1721969246057,30.3559,177.44,177.36,20.0]
[1721969246271,24.72,177.42,177.36,20.0]
[1721969246474,24.72,177.42,177.34,20.0]
[1721969247779,15.4192,177.43,177.36,24.72]
[1721969247964,15.4192,177.47,177.38,24.72]
[1721969248166,15.4192,177.47,177.4,24.72]
[1721969250273,21.054,177.47,177.4,24.72]
[1721969251484,26.12902693,177.46,177.38,24.72]
[1721969251664,7.04483444,177.45,177.38,24.72]
[1721969251866,24.72,177.44,177.36,24.72]
[1721969252067,24.72,177.44,177.37,20.0]
[1721969255470,7.04544517,177.43,177.34,24.72]
[1721969255677,26.12950339,177.42,177.34,24.72]
[1721969255985,24.72,177.42,177.34,24.72]
[1721969256289,26.12948632,177.42,177.34,24.72]
[1721969256877,24.72,177.46,177.36,24.72]
[1721969257078,24.72,177.46,177.38,24.72]
[1721969257779,22.063,177.47,177.4,24.72]
[1721969257977,22.063,177.47,177.41,0.99864467]
[1721969258173,29.10681287,177.47,177.4,24.72]
[1721969258382,27.6978,177.47,177.4,24.72]
[1721969258576,7.04420486,177.46,177.4,24.72]
[1721969258780,7.04420486,177.46,177.38,24.72]
[1721969258987,5.6351,177.46,177.38,24.72]
[1721969259171,22.063,177.47,177.38,24.72]
[1721969259483,22.063,177.47,177.42,24.72]
[1721969259682,15.9599,177.51,177.42,24.72]
[1721969260383,15.9599,177.51,177.43,0.99801517]
[1721969260566,15.9599,177.51,177.44,24.72]
[1721969260764,5.6338,177.5,177.44,24.72]
[1721969260973,21.5934,177.51,177.42,24.72]
[1721969261379,26.12872949,177.5,177.42,24.72]
[1721969261586,5.6341,177.49,177.42,24.72]
[1721969261793,5.6344,177.48,177.42,24.72]
[1721969261968,5.6341,177.49,177.42,24.72]
[1721969262285,5.6344,177.48,177.42,24.72]
[1721969263085,5.6348,177.47,177.4,24.72]
[1721969263981,30.355,177.46,177.38,24.72]
[1721969264183,5.6354,177.45,177.38,24.72]
[1721969264382,30.3551,177.46,177.38,24.72]
[1721969264680,30.3551,177.46,177.39,20.0]
[1721969266171,14.0858,177.49,177.36,24.72]
[1721969266172,40.5861,177.44,177.36,24.72]
[1721969266377,24.72,177.42,177.34,24.72]
[1721969268882,24.72,177.42,177.32,27.44796678]
[1721969268883,5.636,177.43,177.36,24.72]
[1721969269287,5.6365,177.42,177.36,24.72]
[1721969269475,26.12948335,177.42,177.34,24.72]
[1721969269677,31.76588335,177.42,177.34,24.72]
[1721969271300,30.3569,177.4,177.32,30.58736678]
[1721969271590,16.3141,177.38,177.3,24.72]
[1721969271799,5.6383,177.36,177.3,24.72]
[1721969272475,30.3589,177.34,177.26,24.72]
[1721969273192,7.04925341,177.33,177.25,5.86755009]
[1721969273496,7.04942854,177.33,177.24,24.72]
[1721969274306,30.3589,177.34,177.24,24.72]
[1721969274496,30.3589,177.34,177.23,0.98142721]
[1721969274497,30.3589,177.34,177.26,24.72]
[1721969275896,22.7316,177.38,177.32,24.72]
[1721969276687,28.3692,177.38,177.32,24.72]
[1721969277000,5.638,177.37,177.3,24.72]
[1721969277199,5.6383,177.36,177.3,24.72]
[1721969277399,48.8615148,177.38,177.3,24.72]
[1721969277400,5.6379,177.37,177.3,24.72]
[1721969277600,47.4516,177.38,177.3,24.72]
[1721969278502,53.0892,177.38,177.3,24.72]
[1721969280004,5.6379,177.37,177.3,24.72]
[1721969280214,5.6386,177.35,177.28,24.72]
[1721969281086,24.72,177.34,177.26,24.72]
[1721969281293,30.3589,177.34,177.26,24.72]
[1721969281491,5.6389,177.34,177.28,24.72]
[1721969282099,39.6816,177.38,177.28,24.72]
[1721969282100,47.4516,177.38,177.28,24.72]
[1721969282282,28.3694,177.38,177.3,24.72]
[1721969282698,5.638,177.37,177.24,1.00123199]
[1721969282899,5.638,177.37,177.31,24.72]
[1721969283110,47.4516,177.38,177.31,24.72]
[1721969283289,45.0,177.37,177.29,24.72]
[1721969284103,5.6389,177.34,177.29,24.72]
[1721969286810,5.6386,177.35,177.29,24.72]
[1721969287311,5.6382,177.36,177.29,24.72]
[1721969287498,50.638,177.37,177.31,24.72]
[1721969287894,5.638,177.37,177.31,24.72]
[1721969288089,5.6383,177.36,177.31,24.72]
[1721969288299,5.6385,177.35,177.31,24.72]
[1721969288613,5.6392,177.33,177.29,24.72]
[1721969289001,5.6389,177.34,177.29,24.72]
[1721969289188,24.72,177.36,177.29,24.72]
[1721969289393,45.0,177.35,177.27,24.72]
[1721969289802,5.6388,177.34,177.27,24.72]
[1721969290120,47.4516,177.38,177.31,24.72]
[1721969290295,22.7316,177.38,177.31,24.72]
[1721969290622,28.3692,177.38,177.31,24.72]
[1721969290918,28.3692,177.38,177.32,1.00040141]
[1721969291412,16.3141,177.38,177.33,24.72]
[1721969291614,6.3166,177.42,177.33,24.72]
[1721969291615,31.0366,177.42,177.33,24.72]
[1721969291793,5.637,177.4,177.33,24.72]
[1721969292209,36.6731,177.42,177.35,24.72]
[1721969292409,5.6367,177.41,177.35,24.72]
[1721969292695,5.637,177.4,177.35,24.72]
[1721969293214,6.3166,177.42,177.35,24.72]
[1721969293410,11.9529,177.42,177.35,24.72]
[1721969293616,16.1666,177.43,177.37,24.72]
[1721969293910,6.5011,177.46,177.39,24.72]
[1721969294088,6.5011,177.46,177.4,0.99893197]
[1721969294292,5.6348,177.47,177.4,0.99893197]
[1721969294693,41.0294,177.48,177.4,0.99893197]
[1721969294694,21.9439,177.48,177.41,24.72]
[1721969294914,16.3094,177.48,177.43,24.72]
[1721969295110,12.1351,177.5,177.43,24.72]
[1721969295507,5.6344,177.48,177.43,24.72]
[1721969295810,5.6351,177.46,177.41,24.72]
[1721969296212,1.40909121,177.45,177.39,24.72]
[1721969296401,5.6357,177.44,177.39,24.72]
[1721969298095,5.6357,177.44,177.37,24.72]
[1721969298798,5.6361,177.43,177.37,24.72]
[1721969299117,5.6357,177.44,177.37,24.72]
[1721969299319,1.40924909,177.43,177.37,24.72]
[1721969299518,1.4094254,177.42,177.35,24.72]
[1721969299703,24.72,177.44,177.35,24.72]
[1721969299896,24.72,177.44,177.37,24.72]
[1721969300105,20.7075,177.45,177.37,24.72]
[1721969300315,15.0721,177.45,177.41,24.72]
[1721969300522,16.1841,177.49,177.41,24.72]
[1721969300709,21.8185,177.49,177.41,24.72]
[1721969301106,16.1841,177.49,177.43,24.72]
[1721969301308,1.40886372,177.48,177.43,24.72]
[1721969301613,1.40886372,177.48,177.41,24.72]
[1721969301928,5.6348,177.47,177.41,24.72]
[1721969302621,5.6351,177.46,177.41,24.72]
[1721969305220,5.6348,177.47,177.41,24.72]
[1721969306009,5.6345,177.48,177.41,24.72]
[1721969306422,46.5382,177.49,177.41,24.72]
[1721969306633,21.8182,177.49,177.41,24.72]
[1721969306929,21.8182,177.49,177.42,0.9984726]
[1721969307729,5.6345,177.48,177.41,24.72]
[1721969308507,21.8183,177.49,177.41,24.72]
[1721969309124,21.8183,177.49,177.43,24.72]
[1721969309907,5.6344,177.48,177.43,24.72]
[1721969310603,40.9041,177.49,177.41,24.72]
[1721969311005,5.6345,177.48,177.41,24.72]
[1721969311433,5.6348,177.47,177.41,24.72]
[1721969311721,16.1841,177.49,177.41,24.72]
[1721969311923,21.8184,177.49,177.41,24.72]
[1721969312228,5.6343,177.49,177.42,0.99822241]
[1721969312410,5.6343,177.49,177.43,25.71806284]
[1721969312609,5.6343,177.49,177.43,24.72]
[1721969312810,5.6347,177.47,177.43,24.72]
[1721969313013,5.6348,177.47,177.43,24.72]
[1721969313214,5.6348,177.47,177.41,24.72]
[1721969313406,5.6356,177.45,177.41,24.72]
[1721969314009,5.6351,177.46,177.41,24.72]
[1721969314212,5.6354,177.45,177.39,24.72]
[1721969314418,5.635,177.46,177.39,24.72]
[1721969314935,24.72,177.49,177.41,24.72]
[1721969315124,30.3541,177.49,177.41,24.72]
[1721969315322,5.6341,177.49,177.42,0.99830031]
[1721969315524,5.6341,177.49,177.41,24.72]
[1721969315949,5.6344,177.48,177.42,0.998269]
[1721969316123,5.6344,177.48,177.43,0.99827449]
[1721969316443,5.6348,177.47,177.41,24.72]
[1721969316622,5.6354,177.45,177.39,24.72]
[1721969316932,5.6357,177.44,177.39,24.72]
[1721969317307,24.72,177.47,177.37,24.72]
[1721969317308,24.72,177.45,177.37,24.72]
[1721969317626,5.6367,177.41,177.35,24.72]
[1721969319538,5.6369,177.4,177.35,24.72]
[1721969320034,5.6367,177.41,177.35,24.72]
[1721969321513,7.04654567,177.4,177.35,24.72]
[1721969321717,24.72,177.37,177.3,5.86433804]
[1721969321912,5.6388,177.35,177.28,24.72]
[1721969322113,24.72,177.37,177.28,24.72]
[1721969322716,30.3581,177.37,177.28,24.72]
[1721969322920,41.163,177.39,177.3,24.72]
[1721969323134,41.163,177.39,177.32,24.72]
[1721969323415,5.6376,177.38,177.32,24.72]
[1721969323813,16.443,177.39,177.32,24.72]
[1721969324619,5.6371,177.4,177.33,1.0001129]
[1721969325144,5.6371,177.4,177.34,24.72]
[1721969325526,5.6374,177.39,177.34,24.72]
[1721969326054,32.25516845,177.41,177.28,0.99998047]
[1721969326245,32.25516845,177.41,177.31,24.72]
[1721969326246,5.6381,177.37,177.31,24.72]
[1721969326431,5.6376,177.38,177.31,24.72]
[1721969326736,30.3573,177.39,177.32,1.00032315]
[1721969326936,24.72,177.41,177.33,25.71998428]
[1721969327122,5.6373,177.39,177.33,24.72]
[1721969327321,5.6379,177.38,177.33,24.72]
[1721969327839,5.6379,177.38,177.31,24.72]
[1721969328052,5.6379,177.38,177.32,1.00032334]
[1721969328235,24.72,177.35,177.28,20.0]
[1721969328424,1.40966993,177.37,177.28,20.0]
[1721969328629,5.6385,177.35,177.28,20.0]
[1721969329047,5.6388,177.34,177.27,30.9364]
[1721969329346,5.6392,177.33,177.27,24.72]
[1721969329530,30.3589,177.34,177.27,24.72]
[1721969330037,30.3589,177.34,177.25,15.6992]
[1721969330038,69.72,177.38,177.29,24.72]
[1721969330431,69.72,177.38,177.31,24.72]
[1721969330632,24.72,177.4,177.31,24.72]
[1721969330943,16.1366,177.41,177.33,24.72]
[1721969331543,21.7735,177.41,177.33,24.72]
[1721969331923,30.3566,177.42,177.33,24.72]
[1721969332129,5.6363,177.42,177.35,24.72]
[1721969332329,1.40941499,177.41,177.33,24.72]
[1721969332955,7.04611499,177.41,177.33,24.72]
[1721969333153,5.6367,177.41,177.33,24.72]
[1721969333832,1.40953371,177.4,177.33,24.72]
[1721969334547,5.6372,177.4,177.33,24.72]
[1721969334940,5.6373,177.39,177.33,24.72]
[1721969335134,5.6376,177.38,177.31,24.72]
[1721969336534,24.72,177.4,177.31,24.72]
[1721969336727,14.0867,177.48,177.35,24.72]
[1721969336934,1.40938016,177.46,177.37,24.72]
[1721969337243,40.4822,177.45,177.37,24.72]
[1721969337747,46.1175,177.45,177.37,24.72]
[1721969337947,40.4432,177.49,177.41,24.72]
[1721969338246,5.6345,177.48,177.41,24.72]
[1721969339552,24.72,177.51,177.43,24.72]
[1721969339740,24.72,177.51,177.44,0.99806228]
[1721969340050,46.8651126,177.53,177.45,24.72]
[1721969340235,41.2323126,177.53,177.46,0.99773528]
[1721969340437,0.7891126,177.53,177.47,24.72]
[1721969340636,0.7891126,177.53,177.51,24.72]
[1721969341739,0.7891126,177.53,177.52,0.99629326]
[1721969342137,0.7891126,177.53,177.51,24.72]
[1721969342451,0.7891126,177.53,177.52,65.99600714]
[1721969342661,0.7891126,177.53,177.52,65.99558448]
[1721969343033,0.7891126,177.53,177.52,20.99558448]
[1721969343250,0.7891126,177.53,177.52,20.0]
[1721969343583,0.7891126,177.53,177.46,24.72]
[1721969343584,6.4222126,177.53,177.46,24.72]
[1721969344437,5.6332,177.52,177.46,24.72]
[1721969344636,2.19769303,177.53,177.46,24.72]
[1721969344842,24.72,177.52,177.44,24.72]
[1721969345157,24.72,177.52,177.42,24.72]
[1721969345450,24.72,177.52,177.44,24.72]
[1721969345651,0.7891126,177.53,177.44,24.72]
[1721969345842,0.7891126,177.53,177.46,24.72]
[1721969346038,0.7891126,177.53,177.48,24.72]
[1721969346253,0.7891126,177.53,177.46,27.79]
[1721969347057,6.4219126,177.53,177.44,27.79]
[1721969347266,6.4219126,177.53,177.45,20.0]
[1721969347646,0.7891126,177.53,177.45,20.0]
[1721969348161,7.0418445,177.52,177.45,20.0]
[1721969348359,5.6332,177.52,177.45,20.0]
[1721969349067,5.6341,177.5,177.42,27.79]
[1721969349276,1.40872765,177.51,177.42,27.79]
[1721969349769,5.634,177.5,177.4,49.6582]
[1721969350145,5.6341,177.49,177.4,27.79]
[1721969350767,5.6341,177.49,177.41,20.0]
[1721969351238,1.40872765,177.51,177.41,20.0]
[1721969351442,5.6338,177.5,177.41,20.0]
[1721969351677,1.40872765,177.51,177.41,20.0]
[1721969352340,5.6338,177.5,177.41,20.0]
[1721969352543,1.40872765,177.51,177.41,20.0]
[1721969352948,5.6338,177.5,177.41,20.0]
[1721969353558,50.6334,177.52,177.41,20.0]
[1721969353862,5.6336,177.51,177.41,20.0]
[1721969354270,5.6338,177.5,177.41,20.0]
[1721969354568,5.6341,177.49,177.41,20.0]
[1721969355269,5.6338,177.5,177.41,20.0]
[1721969355573,1.40875412,177.49,177.41,20.0]
[1721969355865,16.018,177.47,177.36,50.7826]
[1721969356042,5.6358,177.44,177.36,50.7826]
[1721969356959,5.6354,177.45,177.36,50.7826]
[1721969357559,5.635,177.46,177.36,50.7826]
[1721969357759,16.018,177.47,177.37,20.0]
[1721969358139,16.018,177.47,177.38,27.79]
[1721969358741,21.6529,177.47,177.39,20.0]
[1721969358965,1.40903339,177.46,177.39,20.0]
[1721969359166,1.40901368,177.45,177.39,20.0]
[1721969359348,5.635,177.46,177.39,20.0]
[1721969359860,5.6354,177.45,177.37,20.0]
[1721969360247,5.6357,177.44,177.37,20.0]
[1721969360446,5.6353,177.45,177.37,20.0]
[1721969360747,5.6351,177.46,177.37,20.0]
[1721969360950,21.6527,177.47,177.37,20.0]
[1721969361164,23.06179535,177.47,177.37,20.0]
[1721969361366,5.6351,177.46,177.37,20.0]
[1721969362360,21.6528,177.47,177.37,20.0]
[1721969362956,16.018,177.47,177.38,27.79]
[1721969363166,5.6338,177.5,177.38,27.79]
[1721969363361,5.6338,177.5,177.39,20.0]
[1721969363765,5.6341,177.49,177.39,20.0]
[1721969365672,5.6338,177.5,177.39,20.0]
[1721969365969,5.6341,177.49,177.39,20.0]
[1721969366270,24.72,177.5,177.42,24.72]
[1721969366473,15.6382,177.51,177.44,24.72]
[1721969366671,45.0,177.5,177.42,24.72]
[1721969366853,69.72,177.5,177.42,24.72]
[1721969368176,5.6344,177.48,177.42,24.72]
[1721969368674,1.40891016,177.47,177.42,24.72]